fUST/lending_fUST_20250707
["ID","MTS","AMOUNT","RATE_DAILY","PERIOD"]
[370038319,1751856642207,-420.0,0.000207,2]
[370038320,1751856642217,-545.106,0.00020786,2]
[370038321,1751856642227,-500.0,0.00020832,2]
[370038322,1751856642236,-460.0,0.00020903,2]
[370038323,1751856642246,-611.89,0.00020903,2]
[370038324,1751856642256,-460.0,0.00020903,2]
[370038325,1751856642267,-634.33,0.00020903,2]
[370038326,1751856642278,-838.52,0.00020903,2]
[370038327,1751856642290,-460.0,0.00020903,2]
[370038328,1751856642300,-460.0,0.00020903,2]
[370038329,1751856642309,-460.0,0.00020903,2]
[370038330,1751856642319,-460.0,0.00020905,2]
[370038331,1751856642328,-460.0,0.00020905,2]
[370038332,1751856642337,-460.0,0.00020905,2]
[370038333,1751856642347,-460.0,0.00020905,2]
[370038334,1751856642356,-786.58,0.00020906,2]
[370038335,1751856642366,-522.45,0.00020907,2]
[370038336,1751856642376,-1615.43,0.00020907,2]
[370038337,1751856642386,-460.0,0.00020907,2]
[370038338,1751856642395,-1294.79,0.0002091,2]
[370038339,1751856642406,-460.0,0.0002091,2]
[370038340,1751856642415,-460.0,0.0002091,2]
[370038341,1751856642425,-685.74,0.0002091,2]
[370038342,1751856642434,-460.0,0.0002091,2]
[370038343,1751856642444,-674.13,0.00020919,2]
[370038344,1751856642454,-500.0,0.00020927,2]
[370038345,1751856642463,-2304.83774471,0.00020934,4]
[370038346,1751856642474,-207.50024045,0.00020998,2]
[370038347,1751856642483,-500.0,0.00021022,2]
[370038348,1751856642493,-500.0,0.00021118,2]
[370038349,1751856642502,-460.0,0.00021177,2]
[370038350,1751856642512,-611.89,0.00021177,2]
[370038351,1751856642521,-460.0,0.00021177,2]
[370038352,1751856642530,-634.33,0.00021177,2]
[370038353,1751856642539,-838.52,0.00021177,2]
[370038354,1751856642549,-460.0,0.00021177,2]
[370038355,1751856642558,-460.0,0.00021177,2]
[370038356,1751856642567,-460.0,0.00021177,2]
[370038357,1751856642576,-514.75697613,0.00021179,2]
[370038358,1751856642585,-460.0,0.00021179,2]
[370038359,1751856642594,-460.0,0.00021179,2]
[370038360,1751856642603,-460.0,0.00021179,2]
[370038361,1751856642612,-786.58,0.0002118,2]
[370038362,1751856642621,-522.45,0.00021181,2]
[370038363,1751856642631,-1615.43,0.00021181,2]
[370038364,1751856642640,-460.0,0.00021181,2]
[370038365,1751856642649,-1294.79,0.00021184,2]
[370038366,1751856642662,-460.0,0.00021184,2]
[370038367,1751856642671,-460.0,0.00021184,2]
[370038368,1751856642681,-685.74,0.00021184,2]
[370038369,1751856642690,-460.0,0.00021184,2]
[370038370,1751856642699,-674.13,0.00021193,2]
[370038371,1751856642710,-2304.83774471,0.0002121,4]
[370038372,1751856642719,-500.0,0.00021213,2]
[370038373,1751856642729,-500.0,0.00021308,2]
[370038374,1751856642739,-2385.73117461,0.00021346,2]
[370038375,1751856642749,-9143.22512033,0.00021369,2]
[370038376,1751856642758,-500.0,0.00021404,2]
[370038377,1751856642767,-460.0,0.00021451,2]
[370038378,1751856642776,-611.89,0.00021451,2]
[370038379,1751856642785,-460.0,0.00021451,2]
[370038380,1751856642794,-634.33,0.00021451,2]
[370038381,1751856642803,-838.52,0.00021451,2]
[370038382,1751856642812,-460.0,0.00021451,2]
[370038383,1751856642822,-460.0,0.00021451,2]
[370038384,1751856642831,-460.0,0.00021451,2]
[370038385,1751856642840,-460.0,0.00021453,2]
[370038386,1751856642849,-460.0,0.00021453,2]
[370038387,1751856642861,-460.0,0.00021453,2]
[370038388,1751856642870,-786.58,0.00021454,2]
[370038389,1751856642879,-522.45,0.00021455,2]
[370038390,1751856642890,-1615.43,0.00021455,2]
[370038391,1751856642900,-460.0,0.00021455,2]
[370038392,1751856642909,-1294.79,0.00021458,2]
[370038393,1751856642918,-460.0,0.00021458,2]
[370038395,1751856642927,-460.0,0.00021458,2]
[370038396,1751856642937,-685.74,0.00021458,2]
[370038397,1751856642946,-674.13,0.00021467,2]
[370038398,1751856642955,-2304.83774471,0.00021486,5]
[370038399,1751856642964,-500.0,0.00021499,2]
[370038400,1751856642974,-500.0,0.00021527,2]
[370038401,1751856642983,-179.76630381,0.00021568,2]
[370038402,1751856642992,-500.0,0.00021594,2]
[370038403,1751856643001,-2052.22,0.00021652,2]
[370038404,1751856643011,-500.0,0.0002169,2]
[370038405,1751856643021,-460.0,0.00021725,2]
[370038406,1751856643031,-611.89,0.00021725,2]
[370038407,1751856643040,-460.0,0.00021725,2]
[370038408,1751856643049,-634.33,0.00021725,2]
[370038409,1751856643059,-838.52,0.00021725,2]
[370038410,1751856643068,-460.0,0.00021725,2]
[370038411,1751856643077,-460.0,0.00021725,2]
[370038412,1751856643087,-460.0,0.00021725,2]
[370038413,1751856643096,-377.32009654,0.00021727,2]
[370038414,1751856643107,-460.0,0.00021727,2]
[370038415,1751856643121,-460.0,0.00021727,2]
[370038416,1751856643131,-786.58,0.00021728,2]
[370038417,1751856643140,-522.45,0.00021729,2]
[370038418,1751856643150,-1615.43,0.00021729,2]
[370038419,1751856643159,-460.0,0.00021729,2]
[370038420,1751856643168,-1294.79,0.00021732,2]
[370038421,1751856643178,-460.0,0.00021732,2]
[370038422,1751856643187,-460.0,0.00021732,2]
[370038423,1751856643198,-685.74,0.00021732,2]
[370038424,1751856643208,-674.13,0.00021741,2]
[370038425,1751856643218,-2304.83774471,0.00021762,5]
[370038426,1751856643228,-500.0,0.00021785,2]
[370038427,1751856643237,-980.35,0.000218,2]
[370038428,1751856643247,-500.0,0.0002188,2]
[370038429,1751856643256,-500.0,0.00021917,2]
[370038430,1751856643376,-500.0,0.00021917,2]
[370038431,1751856643385,-500.0,0.00021917,2]
[370038432,1751856643395,-500.0,0.00021917,2]
[370038433,1751856643404,-500.0,0.00021917,2]
[370038434,1751856643413,-500.0,0.00021917,2]
[370038435,1751856643423,-500.0,0.00021917,2]
[370038436,1751856643432,-500.0,0.00021917,2]
[370038437,1751856643442,-531.5159971,0.00021917,2]
[370038438,1751856643451,-150.0,0.00021918,2]
[370038439,1751856643461,-200.0,0.00021918,2]
[370038440,1751856643470,-500.0,0.00021918,2]
[370038441,1751856643480,-500.0,0.00021918,2]
[370038442,1751856643489,-299.90218177,0.00021918,2]
[370038443,1751856643499,-501.07989023,0.00021973,2]
[370038444,1751856643508,-160.2217902,0.00021973,2]
[370038445,1751856643517,-500.0,0.00021973,2]
[370038446,1751856643526,-500.0,0.00021973,2]
[370038447,1751856643535,-407.77750819,0.00021973,2]
[370038448,1751856643544,-500.0,0.00021973,2]
[370038449,1751856643554,-500.0,0.00021973,2]
[370038450,1751856643563,-501.0614704,0.00021973,2]
[370038451,1751856643572,-500.0,0.00021973,2]
[370038452,1751856643582,-502.94698062,0.00021973,2]
[370038453,1751856643591,-500.0,0.00021973,2]
[370038454,1751856643600,-258.72925533,0.00021973,2]
[370038455,1751856643610,-500.0,0.00021973,2]
[370038456,1751856643619,-617.37973056,0.00021973,2]
[370038457,1751856643628,-500.0,0.00021973,2]
[370038458,1751856643638,-500.0,0.00021973,2]
[370038459,1751856643647,-501.41591202,0.00021973,2]
[370038460,1751856643657,-500.0,0.00021973,2]
[370038461,1751856643668,-161.20848038,0.00021973,2]
[370038462,1751856643678,-500.0,0.00021973,2]
[370038463,1751856643689,-500.0,0.00021973,2]
[370038464,1751856643699,-500.0,0.00021973,2]
[370038465,1751856643709,-600.0,0.00021973,2]
[370038466,1751856643718,-500.0,0.00021973,2]
[370038467,1751856643728,-500.0,0.00021973,2]
[370038468,1751856643739,-500.62017214,0.00021973,2]
[370038469,1751856643749,-500.0,0.00021973,2]
[370038470,1751856643758,-500.0,0.00021976,2]
[370038471,1751856643779,-460.0,0.00021999,2]
[370038472,1751856643789,-611.89,0.00021999,2]
[370038473,1751856643799,-460.0,0.00021999,2]
[370038474,1751856643809,-634.33,0.00021999,2]
[370038475,1751856643820,-838.52,0.00021999,2]
[370038476,1751856643830,-460.0,0.00021999,2]
[370038477,1751856643840,-460.0,0.00021999,2]
[370038478,1751856643851,-460.0,0.00021999,2]
[370038479,1751856643861,-73361.25,0.00022,7]
[370038480,1751856643871,-12584.46609586,0.00022,7]
[370038481,1751856643880,-5370.95,0.00022,7]
[370038482,1751856643890,-524.98484073,0.00022,7]
[370038483,1751856643900,-134829.11,0.00022,2]
[370038484,1751856643909,-848.27993403,0.00022,7]
[370038485,1751856643922,-214.06929976,0.00022,7]
[370038486,1751856643932,-423.0,0.00022,2]
[370038487,1751856643942,-460.0,0.00022001,2]
[370038488,1751856643952,-460.0,0.00022001,2]
[370038489,1751856643962,-786.58,0.00022002,2]
[370038490,1751856643972,-522.45,0.00022003,2]
[370038491,1751856643981,-1615.43,0.00022003,2]
[370038492,1751856643991,-460.0,0.00022003,2]
[370038493,1751856644001,-1294.79,0.00022006,2]
[370038494,1751856644010,-460.0,0.00022006,2]
[370038495,1751856644020,-460.0,0.00022006,2]
[370038496,1751856644030,-685.74,0.00022006,2]
[370038497,1751856644040,-674.13,0.00022015,2]
[370038498,1751856644050,-2304.83774471,0.00022038,6]
[370038499,1751856644062,-207.50024045,0.00022064,2]
[370038500,1751856644072,-500.0,0.00022071,2]
[370038501,1751856644081,-151.0,0.000221,10]
[370038502,1751856644091,-151.0,0.000221,8]
[370038503,1751856644100,-500.0,0.00022166,2]
[370038504,1751856644110,-423.0,0.00022192,7]
[370038505,1751856644120,-2385.73117461,0.00022233,2]
[370038506,1751856644129,-500.0,0.00022262,2]
[370038507,1751856644141,-460.0,0.00022273,2]
[370038508,1751856644151,-611.89,0.00022273,2]
[370038509,1751856644161,-460.0,0.00022273,2]
[370038510,1751856644173,-634.33,0.00022273,2]
[370038511,1751856644183,-838.52,0.00022273,2]
[370038512,1751856644195,-460.0,0.00022273,2]
[370038513,1751856644205,-460.0,0.00022273,2]
[370038514,1751856644214,-460.0,0.00022273,2]
[370038515,1751856644224,-460.0,0.00022275,2]
[370038516,1751856644234,-460.0,0.00022275,2]
[370038517,1751856644243,-786.58,0.00022276,2]
[370038518,1751856644253,-522.45,0.00022277,2]
[370038519,1751856644263,-1615.43,0.00022277,2]
[370038520,1751856644272,-460.0,0.00022277,2]
[370038521,1751856644281,-1294.79,0.0002228,2]
[370038522,1751856644290,-460.0,0.0002228,2]
[370038523,1751856644300,-460.0,0.0002228,2]
[370038524,1751856644310,-685.74,0.0002228,2]
[370038525,1751856644319,-674.13,0.00022289,2]
[370038526,1751856644329,-2304.83774471,0.00022314,7]
[370038527,1751856644338,-500.0,0.00022357,2]
[370038528,1751856644348,-500.0,0.00022452,2]
[370038529,1751856644358,-151.0,0.000225,6]
[370038530,1751856644367,-150.0,0.00022515,2]
[370038531,1751856644377,-500.42383133,0.00022521,2]
[370038532,1751856644386,-1009.57661228,0.00022521,2]
[370038533,1751856644395,-1001.76193686,0.00022521,2]
[370038534,1751856644405,-1000.0,0.00022521,2]
[370038535,1751856644414,-501.61453854,0.00022521,2]
[370038536,1751856644424,-503.38998845,0.00022521,2]
[370038537,1751856644434,-501.40803453,0.00022521,2]
[370038538,1751856644443,-1000.41382127,0.00022521,2]
[370038539,1751856644453,-503.69021224,0.00022521,2]
[370038540,1751856644463,-1002.37238666,0.00022521,2]
[370038541,1751856644473,-501.59288037,0.00022521,2]
[370038542,1751856644483,-1001.43177517,0.00022521,2]
[370038543,1751856644493,-1000.0,0.00022521,2]
[370038544,1751856644511,-1200.0,0.00022521,2]
[370038545,1751856644526,-501.60560601,0.00022521,2]
[370038546,1751856644539,-503.61122177,0.00022521,2]
[370038547,1751856644554,-503.73528866,0.00022521,2]
[370038548,1751856644566,-460.0,0.00022547,2]
[370038549,1751856644578,-611.89,0.00022547,2]
[370038550,1751856644591,-460.0,0.00022547,2]
[370038551,1751856644604,-634.33,0.00022547,2]
[370038552,1751856644617,-838.52,0.00022547,2]
[370038553,1751856644636,-460.0,0.00022547,2]
[370038554,1751856644651,-460.0,0.00022547,2]
[370038555,1751856644669,-460.0,0.00022547,2]
[370038556,1751856644682,-500.0,0.00022548,2]
[370038557,1751856644696,-493.65,0.00022549,2]
[370038558,1751856644711,-786.58,0.0002255,2]
[370038559,1751856644724,-522.45,0.00022551,2]
[370038560,1751856644737,-1615.43,0.00022551,2]
[370038561,1751856644749,-460.0,0.00022551,2]
[370038562,1751856644764,-1294.79,0.00022554,2]
[370038563,1751856644777,-460.0,0.00022554,2]
[370038564,1751856644790,-460.0,0.00022554,2]
[370038565,1751856644809,-685.74,0.00022554,2]
[370038566,1751856644823,-674.13,0.00022563,2]
[370038567,1751856644835,-587.0,0.00022564,2]
[370038568,1751856644847,-2304.83774471,0.0002259,7]
[370038569,1751856644857,-274.147501,0.00022603,2]
[370038570,1751856644869,-200.33534176,0.00022603,2]
[370038571,1751856644881,-500.0,0.00022643,2]
[370038572,1751856644892,-460.0,0.00022821,2]
[370038573,1751856644905,-611.89,0.00022821,2]
[370038574,1751856644919,-460.0,0.00022821,2]
[370038575,1751856644933,-634.33,0.00022821,2]
[370038576,1751856644946,-838.52,0.00022821,2]
[370038577,1751856644960,-460.0,0.00022821,2]
[370038578,1751856644981,-460.0,0.00022821,2]
[370038579,1751856644995,-216.47993596,0.00022821,2]
[370038580,1751856645006,-786.58,0.00022824,2]
[370038581,1751856645016,-522.45,0.00022825,2]
[370038582,1751856645026,-1615.43,0.00022825,2]
[370038583,1751856645036,-460.0,0.00022825,2]
[370038584,1751856645047,-1294.79,0.00022828,2]
[370038585,1751856645059,-329.19204412,0.00022828,2]
[370038586,1751856645073,-469.81067053,0.00022828,2]
[370038587,1751856645084,-685.74,0.00022828,2]
[370038588,1751856645096,-674.13,0.00022836,2]
[370038589,1751856645110,-2304.83774471,0.00022866,8]
[370038590,1751856645121,-151.0,0.000229,9]
[370038591,1751856645133,-967.0,0.00022946,2]
[370038592,1751856645147,-648.015,0.00022946,2]
[370038593,1751856645158,-2153.0,0.00022946,2]
[370038594,1751856645169,-150.078,0.00022946,2]
[370038595,1751856645180,-537.463,0.00022946,2]
[370038596,1751856645191,-160.0,0.00022969,3]
[370038597,1751856645204,-150.0,0.00022973,2]
[370038598,1751856645215,-150.0,0.00022973,2]
[370038599,1751856645227,-73361.25,0.00023,7]
[370038600,1751856645240,-5370.95,0.00023,7]
[370038601,1751856645252,-524.98484073,0.00023,7]
[370038602,1751856645264,-134829.11,0.00023,2]
[370038603,1751856645276,-160.0,0.00023,2]
[370038604,1751856645288,-848.27993403,0.00023,7]
[370038605,1751856645301,-330.67695274,0.00023,2]
[370038606,1751856645313,-423.0,0.00023014,7]
[370038607,1751856645325,-1500.0,0.00023068,2]
[370038608,1751856645337,-1500.0,0.00023068,2]
[370038609,1751856645349,-1800.0,0.00023068,2]
[370038610,1751856645361,-460.0,0.00023095,2]
[370038611,1751856645373,-611.89,0.00023095,2]
[370038612,1751856645384,-460.0,0.00023095,2]
[370038613,1751856645396,-634.33,0.00023095,2]
[370038614,1751856645407,-838.52,0.00023095,2]
[370038615,1751856645419,-460.0,0.00023095,2]
[370038616,1751856645431,-460.0,0.00023095,2]
[370038617,1751856645444,-786.58,0.00023098,2]
[370038618,1751856645455,-522.45,0.00023099,2]
[370038619,1751856645467,-1615.43,0.00023099,2]
[370038620,1751856645480,-460.0,0.00023099,2]
[370038621,1751856645491,-980.35,0.000231,7]
[370038622,1751856645502,-1294.79,0.00023102,2]
[370038623,1751856645513,-685.74,0.00023102,2]
[370038624,1751856645525,-674.13,0.0002311,2]
[370038625,1751856645536,-2385.73117461,0.00023119,2]
[370038626,1751856645548,-169.51761584,0.0002312,2]
[370038627,1751856645560,-207.50024045,0.0002313,2]
[370038628,1751856645571,-2200.0,0.0002314,2]
[370038629,1751856645582,-802.654,0.0002314,2]
[370038630,1751856645594,-2304.83774471,0.00023141,8]
[370038631,1751856645607,-109076.61499669,0.00023208,2]
[370038632,1751856645618,-500.0,0.0002322,2]
[370038633,1751856645630,-207.4,0.0002322,2]
[370038634,1751856645641,-501.92819198,0.0002322,2]
[370038635,1751856645652,-151.0,0.0002322,2]
[370038636,1751856645666,-151.0,0.0002322,2]
[370038637,1751856645677,-151.0,0.0002322,2]
[370038638,1751856645688,-151.0,0.0002322,2]
[370038639,1751856645700,-151.0,0.0002322,2]
[370038640,1751856645711,-151.0,0.0002322,2]
[370038641,1751856645722,-690.642,0.0002322,2]
[370038642,1751856645733,-151.0,0.0002322,2]
[370038643,1751856645745,-151.0,0.0002322,2]
[370038644,1751856645756,-151.0,0.0002322,2]
[370038645,1751856645767,-172.0321181,0.0002322,2]
[370038646,1751856645778,-500.0,0.0002322,2]
[370038647,1751856645789,-151.0,0.0002322,2]
[370038648,1751856645801,-151.0,0.0002322,2]
[370038649,1751856645812,-500.0,0.0002322,2]
[370038650,1751856645823,-151.0,0.0002322,2]
[370038651,1751856645832,-1500.0,0.0002322,2]
[370038652,1751856645841,-151.0,0.0002322,2]
[370038653,1751856645851,-500.0,0.0002322,2]
[370038654,1751856645860,-1500.0,0.0002322,2]
[370038657,1751856646037,-153.05532517,0.0002322,2]
[370038658,1751856646049,-500.0,0.0002322,2]
[370038659,1751856646058,-1500.0,0.0002322,2]
[370038660,1751856646068,-500.0,0.0002322,2]
[370038661,1751856646077,-1500.0,0.0002322,2]
[370038662,1751856646087,-500.0,0.0002322,2]
[370038663,1751856646097,-1500.0,0.0002322,2]
[370038664,1751856646107,-500.0,0.0002322,2]
[370038665,1751856646117,-1500.0,0.0002322,2]
[370038666,1751856646126,-500.0,0.0002322,2]
[370038667,1751856646136,-1500.0,0.0002322,2]
[370038668,1751856646145,-500.0,0.0002322,2]
[370038669,1751856646154,-500.0,0.0002322,2]
[370038670,1751856646164,-1500.0,0.0002322,2]
[370038671,1751856646173,-500.0,0.0002322,2]
[370038672,1751856646182,-1500.0,0.0002322,2]
[370038673,1751856646191,-1500.0,0.0002322,2]
[370038674,1751856646201,-1500.0,0.0002322,2]
[370038675,1751856646211,-5000.0,0.0002322,2]
[370038676,1751856646220,-151.0,0.0002322,2]
[370038677,1751856646229,-151.0,0.0002322,2]
[370038678,1751856646239,-151.0,0.0002322,2]
[370038679,1751856646248,-2088.58978358,0.0002322,2]
[370038680,1751856646257,-151.0,0.0002322,2]
[370038681,1751856646266,-151.0,0.0002322,2]
[370038682,1751856646276,-151.0,0.0002322,2]
[370038683,1751856646285,-25134.08012391,0.0002322,2]
[370038684,1751856646295,-151.0,0.0002322,2]
[370038685,1751856646304,-215.90368787,0.0002322,2]
[370038686,1751856646313,-716.195754,0.00023275,2]
[370038687,1751856646322,-991.02615029,0.0002329,4]
[370038688,1751856646331,-991.02615029,0.0002329,4]
[370038689,1751856646341,-991.02615029,0.0002329,4]
[370038690,1751856646350,-991.02615029,0.0002329,4]
[370038691,1751856646359,-991.02615029,0.0002329,4]
[370038692,1751856646368,-991.02615029,0.0002329,4]
[370038693,1751856646377,-991.02615029,0.0002329,4]
[370038694,1751856646386,-991.02615029,0.0002329,4]
[370038695,1751856646396,-991.02615029,0.0002329,4]
[370038696,1751856646405,-991.02615029,0.0002329,4]
[370038697,1751856646414,-991.02615029,0.0002329,4]
[370038698,1751856646423,-991.02615029,0.0002329,4]
[370038699,1751856646433,-991.02615029,0.0002329,4]
[370038700,1751856646443,-991.02615029,0.0002329,4]
[370038701,1751856646452,-991.02615029,0.0002329,4]
[370038702,1751856646462,-991.02615029,0.0002329,4]
[370038703,1751856646471,-991.02615029,0.0002329,4]
[370038704,1751856646480,-991.02615029,0.0002329,4]
[370038705,1751856646490,-991.02615029,0.0002329,4]
[370038706,1751856646499,-991.02,0.0002329,4]
[370038707,1751856646508,-2312.39435067,0.0002329,4]
[370038708,1751856646518,-2312.39435067,0.0002329,4]
[370038709,1751856646527,-2312.39435067,0.0002329,4]
[370038710,1751856646536,-2312.39435067,0.0002329,4]
[370038711,1751856646545,-2312.39435067,0.0002329,4]
[370038712,1751856646554,-2312.39435067,0.0002329,4]
[370038713,1751856646563,-2312.39435067,0.0002329,4]
[370038714,1751856646572,-2312.39435067,0.0002329,4]
[370038715,1751856646582,-2312.39435067,0.0002329,4]
[370038716,1751856646591,-2312.39435067,0.0002329,4]
[370038718,1751856646600,-2312.39435067,0.0002329,4]
[370038720,1751856646609,-2312.39435067,0.0002329,4]
[370038721,1751856646618,-2312.39435067,0.0002329,4]
[370038722,1751856646627,-2312.39435067,0.0002329,4]
[370038723,1751856646636,-150.18282476,0.0002329,4]
[370038724,1751856646645,-150.18282476,0.0002329,4]
[370038725,1751856646657,-150.18282476,0.0002329,4]
[370038726,1751856646667,-150.18282476,0.0002329,4]
[370038727,1751856646677,-150.18282476,0.0002329,4]
[370038728,1751856646688,-150.18282476,0.0002329,4]
[370038729,1751856646697,-150.18282476,0.0002329,4]
[370038730,1751856646706,-150.18282476,0.0002329,4]
[370038731,1751856646715,-150.18282476,0.0002329,4]
[370038732,1751856646725,-150.18282476,0.0002329,4]
[370038733,1751856646734,-150.18282476,0.0002329,4]
[370038734,1751856646745,-150.18282476,0.0002329,4]
[370038735,1751856646755,-150.18282476,0.0002329,4]
[370038736,1751856646765,-150.18282476,0.0002329,4]
[370038737,1751856646775,-150.18282476,0.0002329,4]
[370038738,1751856646786,-150.18282476,0.0002329,4]
[370038739,1751856646796,-150.18282476,0.0002329,4]
[370038740,1751856646806,-150.18282476,0.0002329,4]
[370038741,1751856646815,-150.18282476,0.0002329,4]
[370038742,1751856646824,-150.18,0.0002329,4]
[370038743,1751856646833,-350.42659112,0.0002329,4]
[370038744,1751856646843,-350.42659112,0.0002329,4]
[370038745,1751856646852,-350.42659112,0.0002329,4]
[370038746,1751856646861,-350.42659112,0.0002329,4]
[370038747,1751856646871,-350.42659112,0.0002329,4]
[370038748,1751856646880,-350.42659112,0.0002329,4]
[370038749,1751856646890,-350.42659112,0.0002329,4]
[370038750,1751856646899,-350.42659112,0.0002329,4]
[370038751,1751856646908,-350.42659112,0.0002329,4]
[370038752,1751856646917,-350.42659112,0.0002329,4]
[370038753,1751856646927,-350.42659112,0.0002329,4]
[370038754,1751856646936,-350.42659112,0.0002329,4]
[370038755,1751856646945,-350.42659112,0.0002329,4]
[370038756,1751856646954,-350.42659112,0.0002329,4]
[370038757,1751856646963,-2312.39435067,0.00023303,4]
[370038758,1751856646973,-350.42659112,0.00023303,4]
[370038759,1751856646982,-742.6949969,0.0002333,2]
[370038760,1751856646991,-460.0,0.00023369,2]
[370038761,1751856647001,-611.89,0.00023369,2]
[370038762,1751856647010,-460.0,0.00023369,2]
[370038763,1751856647019,-634.33,0.00023369,2]
[370038764,1751856647028,-838.52,0.00023369,2]
[370038765,1751856647037,-460.0,0.00023369,2]
[370038766,1751856647046,-460.0,0.00023369,2]
[370038767,1751856647056,-786.58,0.00023372,2]
[370038768,1751856647065,-522.45,0.00023373,2]
[370038769,1751856647075,-1615.43,0.00023373,2]
[370038770,1751856647084,-460.0,0.00023373,2]
[370038771,1751856647093,-1294.79,0.00023376,2]
[370038772,1751856647103,-685.74,0.00023376,2]
[370038773,1751856647112,-674.13,0.00023384,2]
[370038774,1751856647121,-770.17471178,0.00023385,2]
[370038775,1751856647131,-151.0,0.000234,8]
[370038776,1751856647140,-2304.83774471,0.00023417,9]
[370038777,1751856647150,-2312.39435067,0.00023422,4]
[370038778,1751856647159,-350.42659112,0.00023422,4]
[370038779,1751856647169,-798.67117612,0.0002344,2]
[370038780,1751856647178,-151.0,0.00023472,6]
[370038781,1751856647188,-828.22200964,0.00023495,2]
[370038782,1751856647198,-250.0,0.00023521,2]
[370038783,1751856647208,-300.0,0.00023521,2]
[370038784,1751856647217,-2312.39435067,0.00023542,4]
[370038785,1751856647227,-350.42659112,0.00023542,4]
[370038786,1751856647236,-958.49906809,0.0002355,2]
[370038787,1751856647245,-200.0,0.00023561,2]
[370038788,1751856647255,-200.0,0.00023561,2]
[370038789,1751856647264,-200.0,0.00023561,2]
[370038790,1751856647273,-200.0,0.00023561,2]
[370038791,1751856647283,-200.0,0.00023561,2]
[370038792,1751856647292,-304.53261215,0.00023561,2]
[370038793,1751856647302,-2000.0,0.00023616,2]
[370038794,1751856647311,-1506.03768511,0.00023616,2]
[370038795,1751856647320,-2400.0,0.00023616,2]
[370038796,1751856647329,-460.0,0.00023643,2]
[370038797,1751856647339,-611.89,0.00023643,2]
[370038798,1751856647348,-460.0,0.00023643,2]
[370038799,1751856647358,-634.33,0.00023643,2]
[370038800,1751856647367,-838.52,0.00023643,2]
[370038801,1751856647377,-460.0,0.00023643,2]
[370038802,1751856647387,-460.0,0.00023643,2]
[370038803,1751856647396,-786.58,0.00023646,2]
[370038804,1751856647405,-522.45,0.00023647,2]
[370038805,1751856647415,-1615.43,0.00023647,2]
[370038806,1751856647425,-460.0,0.00023647,2]
[370038807,1751856647434,-1294.79,0.0002365,2]
[370038808,1751856647443,-685.74,0.0002365,2]
[370038809,1751856647453,-2826.38446044,0.00023655,2]
[370038810,1751856647463,-674.13,0.00023658,2]
[370038811,1751856647473,-2312.39435067,0.00023661,4]
[370038812,1751856647482,-350.42659112,0.00023661,4]
[370038813,1751856647491,-2304.83774471,0.00023693,9]
[370038814,1751856647500,-160.0,0.00023707,4]
[370038815,1751856647510,-5000.0,0.00023768,2]
[370038816,1751856647520,-2312.39435067,0.00023781,4]
[370038817,1751856647530,-350.42659112,0.00023781,4]
[370038818,1751856647539,-151.0,0.000238,7]
[370038819,1751856647549,-12704.38655459,0.000238,2]
[370038820,1751856647559,-2024.72010541,0.000239,2]
[370038821,1751856647568,-2312.39,0.000239,4]
[370038822,1751856647577,-350.42,0.000239,4]
[370038823,1751856647586,-152.24335127,0.00023917,2]